[Event "II Llinars Open 2022"]
[Site "Llinars del Valles"]
[Date "2022.07.03"]
[Round "9.7"]
[White "Diaz Perez, Michel Alejandro"]
[Black "Sanchez Aguilar, Arnau"]
[Result "1/2-1/2"]
[ECO "A03"]
[WhiteElo "2439"]
[BlackElo "2028"]
[Annotator "TA"]
[PlyCount "258"]
[EventDate "2022.06.24"]
[EventType "swiss"]
[EventCountry "ESP"]
[SourceTitle "playchess.com"]
[Source "ChessBase"]
[SourceQuality "1"]
[TimeControl "5400+30"]

{[%evp 22,257,33,43,32,10,54,52,29,39,35,0,0,0,0,0,29,19,25,31,20,17,35,34,33,0,7,-64,-58,-48,-54,-58,-37,-45,-21,-69,-69,-69,-69,-58,-62,-67,-59,-69,-38,-69,-69,-69,-69,-69,-41,-72,-53,-45,-48,-88,-88,-120,-42,-68,-47,-75,-75,-477,-54,-68,-31,-33,-28,-70,-8,-8,-8,-8,0,0,0,-67,-67,-80,-31,-26,0,0,0,-7,0,-8,0,0,0,0,0,0,0,0,0,0,0,0,0,0,0,0,0,0,0,0,18,-8,0,0,0,0,0,0,0,0,0,0,0,0,0,0,0,0,0,0,0,0,0,0,0,0,0,0,0,0,0,0,0,0,0,0,0,0,0,0,0,0,0,-8,-8,-8,-8,-8,-8,-8,-7,-8,-8,-8,-8,-8,-8,-8,-8,-8,-8,-8,-7,-8,-8,-8,-8,-8,-8,-8,-8,-8,-8,-8,-7,-7,-7,-7,-7,-8,-8,-8,-8,-8,-8,-8,-8,-7,-7,-8,-8,-7,-7,-7,-7,-8,-7,-7,-7,-8,-7,-8,-7,-8,-8,-8,-8,-8,-7,-8,-8,-8,-8,-8,-8,-11,-11,-11,-11,-11,-11,-54,-18,-39,-20,-63,0,0,0,0]} 1. f4 {[%emt 0:00:09]} d5 {[%emt 0:00:36]} 2. Nf3 {[%emt 0:00:06]} Nf6 {[%emt 0:00:31]} 3. g3 {[%emt 0:00:10]} g6 {[%emt 0:00:43]} 4. Bg2 {[%emt 0:00:05]} Bg7 {[%emt 0:00:47]} 5. d3 {[%emt 0:00:07]} c5 {[%emt 0:01:04]} 6. O-O {[%emt 0:01:12]} O-O {[%emt 0:01:24]} 7. c3 {[%emt 0:00:12]} Nc6 {[%emt 0:02:05]} 8. a4 {[%emt 0:01:02]} Qd6 {[%emt 0:03:46]} 9. Na3 {[%emt 0:11:21]} a6 {[%emt 0:01:00]} 10. Qe1 {[%emt 0:03:04]} e5 {[%emt 0:02:31]} 11. e4 {[%emt 0:03:10]} dxe4 {[%emt 0:01:07]} 12. dxe4 {[%emt 0:00:09]} Be6 {[%emt 0:00:25]} 13. Qe2 {[%emt 0:19:50]} (13. f5 $5 gxf5 14. exf5 $11) 13... Rfd8 {[%emt 0:08:00]} 14. fxe5 {[%emt 0:03:02]} Nxe5 {[%emt 0:00:10]} 15. Nxe5 {[%emt 0:00:12]} Qxe5 {[%emt 0:00:05]} 16. Bf4 {[%emt 0:00:34]} (16. Nc4 $5 {[%cal Rc4e5]} Bg4 17. Qf2 $14) 16... Qh5 {[%emt 0:00:27]} 17. Qxh5 {[%emt 0:01:01]} Nxh5 {[%emt 0:00:08]} 18. Bg5 {[%emt 0:07:41]} Rd3 {[%emt 0:01:32]} 19. Rad1 {[%emt 0:03:20]} Rxd1 {[%emt 0:01:59]} 20. Rxd1 {[%emt 0:00:04]} Rb8 {[%emt 0:03:21]} 21. a5 {[%emt 0:05:42]} Be5 {[%emt 0:01:31]} 22. Be7 {[%emt 0:22:02]} Rc8 {[%emt 0:01:09]} 23. Bf3 {[%emt 0:02:17]} Nf6 {[%emt 0:02:59]} 24. Bd6 {[%emt 0:00:43]} (24. Bxf6 $11 Bxf6 25. e5) 24... Nd7 $1 $15 {[%emt 0:00:26]} 25. Bxe5 {[%emt 0:00:56]} Nxe5 {[%emt 0:00:27]} 26. Be2 {[%emt 0:00:00]} Nc6 {[%emt 0:00:23]} 27. Bc4 {[%emt 0:02:30]} Bg4 {[%emt 0:00:54]} 28. Rf1 {[%emt 0:01:01]} (28. Rd6 $1 $11) 28... Rc7 $15 {[%emt 0:00:21]} 29. Rf4 {[%emt 0:03:44]} h5 {[%emt 0:00:35]} 30. Bd5 {[%emt 0:00:36]} Nxa5 {[%emt 0:00:17]} 31. Rf6 {[%emt 0:00:19]} Kg7 {[%emt 0:00:15]} 32. Rb6 $1 {[%emt 0:00:15]} Bd7 {[%emt 0:00:39]} 33. b4 {[%emt 0:05:02]} cxb4 {[%emt 0:01:39]} 34. cxb4 {[%emt 0:00:01]} Nc6 {[%emt 0:00:24]} 35. Nc4 {[%emt 0:00:22]} Nd8 {[%emt 0:01:32]} (35... Ne7 $5 {[%cal Re7d5]} 36. Ne5 Bc6 37. Bxc6 Nxc6 38. Nxc6 Rxc6 39. Rxb7 Re6 $17) 36. Ne5 {[%emt 0:04:21]} Be6 {[%emt 0:00:56]} 37. Rd6 {[%emt 0:01:10]} Rc8 {[%emt 0:00:59]} 38. Nd3 {[%emt 0:01:25]} Kf8 {[%emt 0:00:53]} 39. Nc5 {[%emt 0:00:22]} Ke7 {[%emt 0:00:25]} (39... a5 $17 40. Bxe6 fxe6) 40. Rb6 $1 $15 {[%emt 0:00:33]} a5 {[%emt 0:04:27]} 41. Bxe6 {[%emt 0:00:33]} fxe6 {[%emt 0:00:29]} 42. Nd3 $2 {[%emt 0:00:32][%mdl 8192]} (42. Nxb7 $17 axb4 43. Nxd8 Rxd8 44. Rxb4) 42... axb4 $2 {[%emt 0:00:20]} (42... a4 $19 43. Rb5 Rc3) 43. Rxb4 $15 {[%emt 0:00:21]} Rc7 {[%emt 0:00:37]} 44. Nf4 {[%emt 0:00:28]} Kf6 {[%emt 0:00:20]} 45. Rb6 {[%emt 0:00:05]} Nc6 {[%emt 0:00:55]} (45... Rc1+ $15 46. Kf2 Rc2+ 47. Ne2 Ra2) 46. Kf2 $11 {[%emt 0:00:45]} Rd7 {[%emt 0:01:02]} 47. Ke3 {[%emt 0:00:16]} Kf7 {[%emt 0:00:46]} 48. Rb5 {[%emt 0:01:04]} Kf6 {[%emt 0:01:39]} 49. h4 {[%emt 0:00:25]} ({White should play} 49. Rb6 $11) 49... Ne5 $15 {[%emt 0:00:23]} 50. Rb4 {[%emt 0:00:39]} Ng4+ {[%emt 0:00:13]} (50... Rc7 $17) 51. Ke2 $1 $15 {[%emt 0:00:21]} Ne5 {[%emt 0:01:28]} 52. Rb6 {[%emt 0:00:12]} Nc6 {[%emt 0:00:57]} 53. Ke3 {[%emt 0:00:40]} Re7 {[%emt 0:04:18]} 54. Ke2 {[%emt 0:00:45]} Kg7 {[%emt 0:00:00]} 55. Ke3 {[%emt 0:00:18]} Kh6 {[%emt 0:00:02]} 56. Rb5 {[%emt 0:00:09]} e5 {[%emt 0:00:16]} 57. Nd3 {[%emt 0:00:53]} g5 {[%emt 0:00:25]} 58. hxg5+ {[%emt 0:00:32]} Kxg5 {[%emt 0:00:06]} 59. Kf2 {[%emt 0:00:30]} Kf6 {[%emt 0:02:15]} 60. Ke3 {[%emt 0:00:35]} Kg5 {[%emt 0:03:12]} 61. Kf2 {[%emt 0:00:09]} Kf6 {[%emt 0:02:35]} 62. Ke3 {[%emt 0:00:53]} Nd8 {[%emt 0:00:06]} 63. Nc5 {[%emt 0:00:22]} Kg5 {[%emt 0:00:24]} 64. Nd3 {[%emt 0:00:31]} Kg4 {[%emt 0:01:02]} 65. Kf2 {[%emt 0:00:34]} Nf7 {[%emt 0:00:31]} 66. Rb6 {[%emt 0:00:27]} Ng5 {[%emt 0:01:15]} 67. Rg6 {[%emt 0:00:24]} h4 {[%emt 0:00:20]} 68. gxh4 {[%emt 0:00:26]} Kxh4 {[%emt 0:00:03]} 69. Ke3 {[%emt 0:00:10]} Kh5 {[%emt 0:01:24]} 70. Rb6 {[%emt 0:00:16]} Nf7 {[%emt 0:00:27]} 71. Rb5 {[%emt 0:00:14]} Kg5 {[%emt 0:01:33]} 72. Kf3 {[%emt 0:00:49]} Kf6 {[%emt 0:01:30]} 73. Rb6+ {[%emt 0:00:12]} Kg7 {[%emt 0:00:04]} 74. Nc5 {[%emt 0:00:19]} Nd8 {[%emt 0:00:10]} 75. Ke3 {[%emt 0:01:06]} Kf7 {[%emt 0:01:15]} 76. Nd3 {[%emt 0:01:05]} Re6 {[%emt 0:00:53]} 77. Rb5 {[%emt 0:00:06]} Kf6 {[%emt 0:00:31]} 78. Nc5 {[%emt 0:00:27]} Re7 {[%emt 0:00:16]} 79. Nd3 {[%emt 0:00:10]} Re8 {[%emt 0:04:14]} 80. Nc5 {[%emt 0:00:17]} Re7 {[%emt 0:01:06]} 81. Nd3 {[%emt 0:00:25]} Nf7 {[%emt 0:04:09]} 82. Nc5 {[%emt 0:01:27]} Rc7 {[%emt 0:00:16]} 83. Nxb7 {[%emt 0:00:41]} Rc3+ {[%emt 0:00:07]} 84. Kd2 {[%emt 0:00:17]} Rc4 {[%emt 0:00:51]} 85. Ke3 {[%emt 0:00:38]} Rc6 {[%emt 0:01:40]} 86. Nc5 {[%emt 0:00:37]} Nd6 {[%emt 0:00:08]} 87. Nd7+ {[%emt 0:00:30]} Ke7 {[%emt 0:00:16]} 88. Rxe5+ {[%emt 0:00:30]} Kxd7 {[%emt 0:00:02]} 89. Rh5 {[%emt 0:00:11]} Rc3+ {[%emt 0:01:09]} 90. Kf4 {[%emt 0:00:45]} Rc4 {[%emt 0:00:49]} 91. Re5 {[%emt 0:00:25]} Nf7 {[%emt 0:00:15]} 92. Ra5 {[%emt 0:00:36]} Ke6 {[%emt 0:00:13]} 93. Kf3 {[%emt 0:00:35]} Rb4 {[%emt 0:00:41]} 94. Ke3 {[%emt 0:00:27]} Nd6 {[%emt 0:00:05]} 95. Ra6 {[%emt 0:00:01]} Rxe4+ {[%emt 0:00:05]} 96. Kd3 {[%emt 0:00:33]} Re5 {[%emt 0:00:36]} 97. Kd4 {[%emt 0:00:28]} Rd5+ {[%emt 0:00:04]} 98. Ke3 {[%emt 0:00:15]} Ke5 {[%emt 0:00:35]} 99. Ra8 {[%emt 0:00:48]} Rb5 {[%emt 0:00:14]} 100. Rh8 {[%emt 0:00:25]} Rb3+ {[%emt 0:00:13]} 101. Ke2 {[%emt 0:00:22]} Ne4 {[%emt 0:00:09]} 102. Re8+ {[%emt 0:00:20]} Kd5 {[%emt 0:00:35]} 103. Rd8+ {[%emt 0:00:14]} Nd6 {[%emt 0:00:03]} 104. Rh8 {[%emt 0:00:09]} Kd4 {[%emt 0:00:28]} 105. Rd8 {[%emt 0:00:48]} Re3+ {[%emt 0:00:44]} 106. Kf2 {[%emt 0:00:22]} Re6 {[%emt 0:00:02]} 107. Kf3 {[%emt 0:00:26]} Rf6+ {[%emt 0:00:49]} 108. Ke2 {[%emt 0:00:46]} Ke4 {[%emt 0:00:12]} 109. Ra8 {[%emt 0:00:17]} Nb5 {[%emt 0:00:37]} 110. Re8+ {[%emt 0:00:22]} Kd4 {[%emt 0:00:05]} 111. Rd8+ {[%emt 0:00:11]} Nd6 {[%emt 0:00:02]} 112. Rd7 {[%emt 0:01:21]} Ke4 {[%emt 0:00:44]} 113. Re7+ {[%emt 0:00:41]} Kf4 {[%emt 0:00:05]} 114. Kd3 {[%emt 0:00:29]} Rh6 {[%emt 0:00:04]} 115. Rd7 {[%emt 0:01:00]} Rh1 {[%emt 0:00:16]} 116. Ke2 {[%emt 0:00:22]} Nf5 {[%emt 0:00:06]} 117. Ra7 {[%emt 0:00:26]} Ke4 {[%emt 0:00:11]} 118. Kd2 {[%emt 0:00:39]} Rh3 {[%emt 0:00:17]} 119. Ra4+ {[%emt 0:00:42]} Nd4 {[%emt 0:00:03]} 120. Ra8 {[%emt 0:00:28]} Rd3+ {[%emt 0:00:21]} 121. Kc1 {[%emt 0:00:33]} Rc3+ {[%emt 0:00:16]} 122. Kb2 {[%emt 0:00:27]} Rb3+ {[%emt 0:00:04]} 123. Ka2 {[%emt 0:00:26]} Rb7 {[%emt 0:00:04]} 124. Re8+ {[%emt 0:00:38]} Kd3 {[%emt 0:00:05]} 125. Rc8 {[%emt 0:00:27]} Ne2 {[%emt 0:00:11]} 126. Ka3 {[%emt 0:00:35]} Nc3 {[%emt 0:00:02]} 127. Rd8+ {[%emt 0:00:20]} Kc2 {[%emt 0:00:04]} (127... Ke4 $15) 128. Rd2+ $1 $11 {[%emt 0:00:15]} Kb1 {[%emt 0:00:23]} 129. Rb2+ {[%emt 0:00:15]} Rxb2 {[%emt 0:00:07]} 1/2-1/2

[Event "II Llinars Open 2022"]
[Site "Llinars del Valles"]
[Date "2022.07.03"]
[Round "9.8"]
[White "Paniagua Garcia, Jose Manuel"]
[Black "Casares Bonals, Asier"]
[Result "1-0"]
[ECO "B50"]
[WhiteElo "2082"]
[BlackElo "1741"]
[Annotator "NA RC"]
[PlyCount "65"]
[EventDate "2022.06.24"]
[EventType "swiss"]
[EventCountry "ESP"]
[SourceTitle "playchess.com"]
[Source "ChessBase"]
[SourceQuality "1"]
[TimeControl "5400+30"]

1. e4 {[%emt 0:00:05]} c5 {[%emt 0:00:18]} 2. Nf3 {[%emt 0:00:11]} d6 {[%emt 0:00:17]} 3. Nc3 {[%emt 0:00:55]} Nf6 {[%emt 0:00:47]} 4. Bb5+ {[%emt 0:05:09]} Bd7 {[%emt 0:00:52]} 5. Qe2 {[%emt 0:02:11]} a6 {[%emt 0:04:20]} 6. Bxd7+ {[%emt 0:01:07]} Qxd7 {[%emt 0:02:10]} 7. Nd5 {[%emt 0:07:55]} Qd8 {[%emt 0:09:58]} 8. O-O {[%emt 0:03:55]} Nbd7 {[%emt 0:03:22]} 9. c4 {[%emt 0:03:12]} e6 {[%emt 0:02:02]} 10. Nc3 {[%emt 0:00:26]} Be7 {[%emt 0:00:48]} 11. b3 {[%emt 0:00:33]} O-O {[%emt 0:02:34]} 12. Bb2 {[%emt 0:00:43]} Rc8 {[%emt 0:04:37]} 13. Rad1 {[%emt 0:00:51]} Qa5 {[%emt 0:13:13]} 14. d3 {[%emt 0:10:13]} b5 {[%emt 0:10:40]} 15. Qc2 {[%emt 0:07:34]} Nb6 {[%emt 0:08:52]} 16. Rfe1 {[%emt 0:03:52]} Rfd8 {[%emt 0:02:06]} 17. Nb1 {[%emt 0:04:28]} Na8 {[%emt 0:05:55]} 18. Nbd2 {[%emt 0:04:23]} Nd7 {[%emt 0:04:33]} 19. e5 {[%emt 0:01:39]} d5 {[%emt 0:03:50]} 20. h4 {[%emt 0:06:48]} Nb8 {[%emt 0:03:16]} 21. cxd5 {[%emt 0:04:45]} Rxd5 {[%emt 0:00:03]} 22. Ne4 {[%emt 0:00:54]} Rdd8 {[%emt 0:01:03]} 23. Nf6+ {[%emt 0:02:33]} Kh8 {[%emt 0:02:40]} 24. Ng5 {[%emt 0:01:42]} Rf8 {[%emt 0:02:33]} 25. d4 {[%emt 0:00:47]} g6 {[%emt 0:00:13]} 26. Ngxh7 {[%emt 0:01:04]} cxd4 {[%emt 0:01:44]} 27. Qe4 {[%emt 0:00:16]} Rfd8 {[%emt 0:00:50]} 28. Ng5 {[%emt 0:00:39]} Kg7 {[%emt 0:01:11]} 29. h5 {[%emt 0:01:30]} Nc7 {[%emt 0:01:45]} 30. Nxf7 {[%emt 0:00:18]} Bxf6 {[%emt 0:01:54]} 31. Qxg6+ {[%emt 0:00:05]} Kf8 {[%emt 0:00:09]} 32. exf6 {[%emt 0:00:14]} Qb4 {[%emt 0:00:51]} 33. Nxd8 {[%emt 0:01:10]} 1-0